bitfinex/quotes_SOLUSD_20260226
["timestamp","ask_amount","ask_price","bid_price","bid_amount"]
[1772147580577,0.45358137,86.118,86.093,0.48389879]
[1772147580950,0.45358137,86.118,86.101,0.48389879]
[1772147581154,0.2,86.12,86.101,0.48389879]
[1772147581673,0.2,86.12,86.103,0.48389879]
[1772147583674,0.2,86.12,86.11,3.73353492]
[1772147583875,1e-08,86.14,86.122,0.4223371]
[1772147584060,1e-08,86.14,86.12,7.46706984]
[1772147584061,0.45358137,86.159,86.131,0.4223371]
[1772147584259,0.45358137,86.159,86.14,3.73353492]
[1772147584875,0.45358137,86.173,86.151,0.4223371]
[1772147585172,0.2,86.18,86.14,3.73353492]
[1772147585173,0.45358137,86.168,86.14,3.73353492]
[1772147585476,0.45358137,86.168,86.141,0.4223371]
[1772147586475,0.45358137,86.166,86.141,0.4223371]
[1772147587876,0.45358137,86.166,86.142,0.4223371]
[1772147588079,0.45358137,86.171,86.142,0.4223371]
[1772147588272,0.45358137,86.169,86.142,0.4223371]
[1772147589278,0.45358137,86.169,86.15,3.72913079]
[1772147589779,0.45358137,86.169,86.151,0.4223371]
[1772147589965,0.47770014,86.174,86.151,0.4223371]
[1772147590275,0.67770014,86.17,86.151,0.4223371]
[1772147590481,0.47770014,86.169,86.151,0.4223371]
[1772147591865,0.47770014,86.169,86.145,0.4223371]
[1772147592083,0.47770014,86.167,86.141,11.60874271]
[1772147593076,0.47770014,86.167,86.142,0.4223371]
[1772147594881,0.47770014,86.167,86.15,3.72913079]
[1772147598591,0.47770014,86.165,86.15,3.72913079]
[1772147599689,0.47770014,86.165,86.142,0.4223371]
[1772147602391,0.47770014,86.163,86.142,0.4223371]
[1772147602580,0.47770014,86.163,86.141,11.60887382]
[1772147602779,0.47770014,86.169,86.151,0.4223371]
[1772147603985,0.47770014,86.169,86.152,0.4223371]
[1772147604187,0.2,86.17,86.152,0.4223371]
[1772147604381,0.2,86.18,86.162,0.2223371]
[1772147604599,0.2,86.2,86.17,3.72913079]
[1772147604783,0.2,86.2,86.181,0.0223371]
[1772147604989,0.2,86.2,86.19,3.72913079]
[1772147605294,0.2,86.2,86.181,0.0223371]
[1772147605676,0.2,86.2,86.151,40.62633673]
[1772147605677,0.48883145,86.189,86.151,11.60752093]
[1772147605876,0.48883145,86.187,86.152,0.0223371]
[1772147606081,0.2,86.2,86.181,0.0223371]
[1772147606273,0.2,86.2,86.19,3.72913079]
[1772147607381,0.2,86.2,86.183,0.0223371]
[1772147608683,0.48883145,86.199,86.18,3.72913079]
[1772147610600,0.48883145,86.199,86.174,0.0223371]
[1772147612399,0.48883145,86.198,86.17,3.72913079]
[1772147612702,0.48883145,86.198,86.172,0.0223371]
[1772147614096,0.48883145,86.196,86.172,0.0223371]
[1772147615099,0.2,86.2,86.181,0.0223371]
[1772147615397,0.2,86.21,86.2,3.72913079]
[1772147616183,0.2,86.21,86.191,0.0223371]
[1772147617189,0.48883145,86.209,86.19,3.72913079]
[1772147617883,0.48883145,86.209,86.184,11.60303935]
[1772147618498,0.48883145,86.209,86.184,11.62537645]
[1772147619198,0.48883145,86.209,86.14,92.87204152]
[1772147619199,0.48883145,86.207,86.17,3.72913079]
[1772147619406,0.48883145,86.179,86.153,11.60725685]
[1772147620509,0.48883145,86.179,86.152,0.0223371]
[1772147623114,0.48883145,86.177,86.152,0.0223371]
[1772147623810,0.48883145,86.177,86.151,11.60752632]
[1772147624907,11.60415893,86.176,86.142,29.02164748]
[1772147625112,0.48883145,86.175,86.142,29.02164748]
[1772147625307,0.48883145,86.175,86.143,0.0223371]
[1772147626216,0.48883145,86.175,86.151,0.0223371]
[1772147627219,0.48883145,86.175,86.151,11.62986342]
[1772147628615,0.48883145,86.175,86.151,11.60752632]
[1772147628911,0.48883145,86.173,86.151,11.60752632]
[1772147629418,0.48883145,86.173,86.147,11.60805335]
[1772147632020,0.48883145,86.173,86.143,0.0223371]
[1772147632518,0.48883145,86.173,86.15,3.72913079]
[1772147633413,0.48883145,86.173,86.151,11.60752632]
[1772147633616,0.48883145,86.173,86.151,11.62986342]
[1772147636407,0.48883145,86.178,86.151,0.0223371]
[1772147637216,11.60334616,86.183,86.151,0.0223371]
[1772147637807,12.09217761,86.183,86.151,0.0223371]
[1772147638006,0.48883145,86.182,86.151,0.0223371]
[1772147639127,0.48883145,86.18,86.15,3.72913079]
[1772147639421,0.48883145,86.179,86.145,0.0223371]
[1772147640518,0.48883145,86.179,86.14,3.72913079]
[1772147640519,0.48883145,86.177,86.142,0.0223371]
[1772147641020,0.48883145,86.177,86.141,11.60887382]
[1772147641208,0.48883145,86.169,86.137,11.60939038]
[1772147642302,0.48883145,86.159,86.131,11.61022163]
[1772147642516,0.48883145,86.159,86.122,11.61143494]
[1772147643532,0.48883145,86.149,86.122,11.61143494]
[1772147644702,0.48883145,86.139,86.111,11.61291821]
[1772147644904,0.48883145,86.139,86.111,11.63525531]
[1772147645227,0.48883145,86.139,86.112,0.0223371]
[1772147645724,0.48883145,86.158,86.13,3.72913079]
[1772147645907,0.48883145,86.165,86.14,3.75146789]
[1772147646828,0.48883145,86.165,86.141,11.63121092]
[1772147649230,0.48883145,86.165,86.141,0.0223371]
[1772147651030,0.48883145,86.165,86.14,3.75176314]
[1772147651234,0.48883145,86.163,86.14,0.0223371]
[1772147653129,0.48883145,86.149,86.109,0.0223371]
[1772147653437,0.48883145,86.139,86.109,0.0223371]
[1772147653936,0.48883145,86.138,86.109,0.0223371]
[1772147655121,0.48883145,86.138,86.103,0.0223371]
[1772147659233,0.48883145,86.136,86.103,0.0223371]
[1772147659440,11.60941291,86.137,86.084,3.69383402]
[1772147659441,0.48883145,86.129,86.084,3.69383402]
[1772147659836,0.48883145,86.129,86.082,0.0223371]
[1772147660229,3.72942604,86.13,86.081,11.90128855]
[1772147660230,0.48883145,86.119,86.081,11.61696541]
[1772147661650,0.48883145,86.117,86.081,40.65937895]
[1772147661942,0.48883145,86.117,86.09,3.72942604]
[1772147662725,0.48883145,86.117,86.091,11.61561603]
[1772147664448,0.48883145,86.115,86.091,11.61561603]
[1772147669652,0.48883145,86.115,86.1,3.72942604]
[1772147670254,0.48883145,86.115,86.092,0.0223371]
[1772147673347,0.48883145,86.115,86.091,11.61561603]
[1772147674954,0.48883145,86.115,86.092,0.0223371]
[1772147675260,3.72942604,86.14,86.101,0.49990364]
[1772147675454,11.60914336,86.139,86.101,0.49990364]
[1772147676055,11.60914336,86.139,86.103,0.49990364]
[1772147676242,3.72942604,86.13,86.083,0.49990364]
[1772147676857,3.72942604,86.12,86.082,11.61673292]
[1772147677364,0.47174806,86.117,86.082,11.61673292]
[1772147677748,0.47174806,86.117,86.09,3.72942604]
[1772147677943,0.47174806,86.117,86.095,0.48127638]
[1772147680557,0.47174806,86.117,86.1,3.72942604]
[1772147684847,0.47174806,86.117,86.096,11.61494146]
[1772147686350,0.47174806,86.117,86.09,3.72942604]
[1772147686754,0.47174806,86.117,86.087,0.48111554]
[1772147687463,0.45047724,86.115,86.089,0.48111554]
[1772147687964,0.45047724,86.115,86.09,3.72942604]
[1772147688170,0.45047724,86.115,86.091,0.48111554]
[1772147691670,0.45047724,86.12,86.092,0.48111554]
[1772147691880,0.45047724,86.12,86.101,0.48111554]
[1772147692972,0.45047724,86.119,86.096,0.48111554]
[1772147695071,0.45047724,86.119,86.096,12.09593523]
[1772147695274,0.45047724,86.117,86.096,0.48111554]
[1772147695451,0.45047724,86.117,86.092,11.61545275]
[1772147696170,0.45047724,86.117,86.092,12.09656829]
[1772147696474,0.45047724,86.117,86.094,12.09632682]
[1772147697575,0.45047724,86.128,86.101,0.48111554]
[1772147697770,0.45047724,86.128,86.094,11.61521128]
[1772147698679,0.45047724,86.126,86.094,12.09632682]
[1772147699472,0.45047724,86.126,86.095,0.48111554]
[1772147700878,0.45047724,86.124,86.096,12.096057]
[1772147701061,0.45047724,86.124,86.097,0.48111554]
[1772147701774,0.45047724,86.124,86.092,11.61544141]
[1772147702080,0.45047724,86.119,86.081,29.1]
[1772147702279,0.45047724,86.119,86.08,0.68111554]
[1772147702669,0.45047724,86.109,86.081,0.48111554]
[1772147702870,0.45047724,86.107,86.081,0.48111554]
[1772147703575,0.45047724,86.107,86.083,0.48111554]
[1772147705282,0.45047724,86.107,86.08,3.92942604]
[1772147705283,0.45047724,86.125,86.09,3.72942604]
[1772147705575,0.45047724,86.125,86.091,0.48111554]
[1772147706577,0.45047724,86.124,86.093,0.48111554]
[1772147709078,11.61130011,86.123,86.093,0.48111554]
[1772147709282,0.45047724,86.122,86.094,12.09632682]
[1772147709660,0.49575701,86.127,86.101,0.47781979]
[1772147711080,0.49575701,86.127,86.09,11.61571732]
[1772147711261,0.49575701,86.125,86.09,11.61571732]
[1772147711980,0.49575701,86.119,86.081,11.61696541]
[1772147712176,0.49575701,86.109,86.08,0.2]
[1772147712683,0.49575701,86.109,86.081,11.61696541]
[1772147713483,0.49575701,86.128,86.091,0.47781979]
[1772147715489,0.49575701,86.126,86.093,0.47781979]
[1772147717199,0.49575701,86.137,86.101,0.47781979]
[1772147718084,0.49575701,86.135,86.102,11.61413207]
[1772147719695,0.49575701,86.135,86.097,11.61473312]
[1772147719887,0.49575701,86.135,86.097,12.09255291]
[1772147723401,0.49575701,86.133,86.097,12.09255291]
[1772147723913,0.49575701,86.129,86.097,0.47781979]
[1772147725678,0.49575701,86.127,86.091,0.47781979]
[1772147730107,0.49575701,86.119,86.08,3.93385963]
[1772147730402,0.49575701,86.089,86.08,0.2]
[1772147730593,0.49575701,86.089,86.064,11.61920061]
[1772147731988,0.49575701,86.089,86.064,12.0970204]
[1772147732212,0.49575701,86.088,86.065,0.47781979]
[1772147733311,0.49575701,86.086,86.064,11.61920061]
[1772147733807,0.49575701,86.086,86.06,0.2]
[1772147735912,11.61642562,86.085,86.06,0.2]
[1772147736113,11.61642562,86.085,86.05,3.73385963]
[1772147736114,0.49575701,86.079,86.04,3.73385963]
[1772147738211,0.49575701,86.077,86.043,0.23334876]
[1772147738708,0.49575701,86.069,86.038,0.23334876]
[1772147739011,0.49575701,86.069,86.036,11.6230379]
[1772147740206,0.48906435,86.067,86.032,11.62358192]
[1772147741888,0.48906435,86.067,86.026,0.23334876]
[1772147742094,0.47541724,86.049,86.02,0.23334876]
[1772147742294,0.47541724,86.047,86.02,0.23334876]
[1772147743210,0.47541724,86.047,86.021,11.62506829]
[1772147743398,0.47541724,86.047,86.022,0.23334876]
[1772147744296,0.47541724,86.045,86.017,0.23334876]
[1772147745110,0.47541724,86.045,86.011,40.69245735]
[1772147745305,0.47541724,86.045,86.011,11.62641987]
[1772147745811,0.47541724,86.039,86.011,11.62641987]
[1772147747223,12.09808743,86.039,86.011,11.62641987]
[1772147747420,0.47541724,86.038,86.011,11.62641987]
[1772147748614,0.47541724,86.038,86.01,0.2]
[1772147748815,0.47541724,86.045,86.012,0.23334876]
[1772147749013,0.47541724,86.045,86.02,3.96720839]
[1772147749211,0.47541724,86.045,86.02,0.23334876]
[1772147749415,0.47541724,86.044,86.02,0.23334876]
[1772147751025,11.62209592,86.043,86.013,0.23334876]
[1772147751214,0.47541724,86.042,86.013,0.23334876]
[1772147753229,0.47541724,86.04,86.015,0.23334876]
[1772147756328,0.47541724,86.038,86.017,0.23334876]
[1772147758533,0.47541724,86.038,86.012,0.23334876]
[1772147759120,0.47541724,86.036,86.012,0.23334876]
[1772147759730,0.47541724,86.036,86.01,0.2]
[1772147760535,0.47541724,86.034,86.01,0.2]
[1772147760715,0.47541724,86.029,86.01,0.2]
[1772147762636,0.47541724,86.053,86.011,0.23334876]
[1772147762814,0.47541724,86.049,86.012,0.23334876]
[1772147764223,11.6214206,86.048,86.013,11.62614953]
[1772147764414,0.47541724,86.047,86.013,11.62614953]
[1772147765140,0.47541724,86.047,86.013,11.85949829]
[1772147765542,0.47541724,86.045,86.014,0.23334876]
[1772147766221,0.47541724,86.045,86.011,11.62641987]
[1772147766543,0.47541724,86.039,86.01,0.2]
[1772147767731,3.73385963,86.03,86.01,0.2]
[1772147768033,3.73385963,86.01,85.99,0.2]
[1772147768235,0.47541724,86.009,85.99,0.2]
[1772147770018,11.62682541,86.008,85.99,0.2]
[1772147770220,0.49326076,86.007,85.99,0.2]
[1772147784763,11.62709578,86.006,85.99,0.2]
[1772147785049,0.49326076,86.005,85.99,0.2]
[1772147787955,11.62736616,86.004,85.99,0.2]
[1772147788143,0.49326076,86.003,85.99,0.2]
[1772147795361,0.49326076,86.014,85.991,0.43334876]
[1772147796447,11.62614953,86.013,85.991,0.43334876]
[1772147796761,0.49326076,86.012,85.99,0.2]
[1772147800565,0.49673091,86.01,85.99,0.2]
[1772147801573,0.49673091,86.009,85.98,0.1]
[1772147803067,0.49673091,86.007,85.98,0.1]
[1772147803456,0.49673091,85.999,85.98,0.1]
[1772147803768,0.49673091,85.999,85.97,0.1]
[1772147803970,0.49673091,85.989,85.97,0.1]
[1772147804554,0.49673091,85.987,85.97,0.1]
[1772147804851,3.74387206,85.98,85.941,0.49678437]
[1772147805059,0.49673091,85.979,85.945,0.49678437]
[1772147805250,0.49673091,85.979,85.951,0.49678437]
[1772147806463,0.49673091,85.977,85.951,0.49678437]
[1772147807165,0.49673091,85.977,85.952,12.13118496]
[1772147807468,0.49673091,85.977,85.953,0.49678437]
[1772147809165,0.49673091,85.977,85.954,11.63412988]
[1772147809373,0.49673091,85.977,85.955,0.49678437]
[1772147811571,0.49673091,85.993,85.961,0.49678437]
[1772147811762,0.49673091,85.999,85.971,0.49678437]
[1772147812273,0.49673091,85.998,85.971,0.49678437]
[1772147814785,0.49673091,85.996,85.971,0.49678437]
[1772147815176,0.49673091,85.996,85.966,0.49678437]
[1772147820869,11.62858305,85.995,85.966,0.49678437]
[1772147821062,0.49673091,85.994,85.966,0.49678437]
[1772147821268,0.49673091,85.994,85.967,11.63237056]
[1772147821469,0.49673091,85.994,85.968,0.49678437]
[1772147821760,0.49673091,86.015,85.971,0.49678437]
[1772147822166,0.49673091,86.009,85.971,0.49678437]
[1772147825975,0.49673091,85.999,85.964,0.49678437]
[1772147826678,0.49673091,85.989,85.964,0.49678437]
[1772147827084,11.6295297,85.988,85.964,0.49678437]
[1772147827272,0.49673091,85.987,85.964,0.49678437]
[1772147828081,0.49673091,85.987,85.949,0.49678437]
[1772147828389,0.49673091,85.979,85.944,0.49678437]
[1772147828783,0.49673091,85.979,85.951,0.49678437]
[1772147829177,11.6295297,85.988,85.961,0.49678437]
[1772147829178,0.49673091,85.985,85.961,0.49678437]
[1772147831286,0.45530463,85.983,85.961,0.49678437]
[1772147833992,0.45530463,85.981,85.961,0.49678437]
[1772147835372,0.45530463,85.981,85.956,0.47075926]
[1772147836674,0.45530463,85.981,85.958,0.47075926]
[1772147836870,0.45530463,85.981,85.961,0.47075926]
[1772147847833,0.45530463,85.979,85.961,0.47075926]
[1772147850032,0.46870525,85.977,85.944,0.28432314]
[1772147851943,0.46870525,85.975,85.946,0.0625895]
[1772147853420,0.46870525,85.975,85.951,0.0625895]
[1772147853919,61.88535021,86.0,85.951,0.0625895]
[1772147853920,0.46870525,85.98,85.951,0.0625895]
[1772147854126,0.46870525,85.98,85.952,0.0625895]
[1772147854932,0.46870525,85.995,85.962,0.0625895]
[1772147855138,0.46870525,85.995,85.971,0.0625895]
[1772147856721,0.46870525,85.995,85.972,0.06605397]
[1772147859141,0.50220341,86.029,85.991,0.08489735]
[1772147859349,0.50220341,86.029,86.001,0.08489735]
[1772147860631,0.50220341,86.029,85.996,0.10309886]
[1772147862251,0.48459023,86.027,86.001,0.10902719]
[1772147864143,0.48459023,86.027,86.01,3.74528125]
[1772147864324,0.48459023,86.027,86.011,0.12068035]
[1772147866241,0.48459023,86.032,86.011,0.12068035]
[1772147870657,0.48459023,86.03,86.006,0.15940999]
[1772147871053,0.48459023,86.03,86.01,3.74528125]
[1772147871347,0.48459023,86.03,86.011,0.15940999]
[1772147874039,0.48459023,86.03,86.012,0.17507332]
[1772147874346,0.48459023,86.036,86.012,0.17507332]
[1772147874544,0.48459023,86.036,86.01,3.74528125]
[1772147875047,0.48459023,86.036,85.992,0.18017495]
[1772147876945,0.48459023,86.034,86.001,0.1902031]
[1772147879152,0.48459023,86.032,86.001,0.1902031]
[1772147880959,0.48459023,86.03,86.0,3.74528125]
[1772147882836,11.62398726,86.029,86.0,3.96421534]
[1772147883034,0.48459023,86.028,86.0,3.96421534]
[1772147883661,0.48459023,86.028,86.001,0.22353194]
[1772147885466,0.48459023,86.026,86.003,0.22807698]
[1772147888861,0.48459023,86.024,86.003,0.22807698]
[1772147889160,0.48459023,86.024,85.998,0.24574106]
[1772147891661,0.5422669,86.022,85.998,0.24574106]
[1772147893266,11.62506829,86.021,86.001,0.26670367]
[1772147893468,0.5422669,86.02,86.001,0.26670367]
[1772147895468,11.62533858,86.019,86.001,0.26670367]
[1772147895769,0.5422669,86.018,86.001,0.26670367]
[1772147899374,0.5422669,86.016,85.99,3.741724]
[1772147899669,0.5422669,86.016,85.984,0.28432314]
[1772147899972,0.5422669,86.016,85.984,0.5784128]
[1772147900774,0.5422669,86.016,85.985,0.29782427]
[1772147900973,0.5422669,86.016,85.99,3.741724]
[1772147901273,0.5422669,86.016,85.991,0.29782427]
[1772147901468,0.5422669,86.017,85.991,0.29782427]
[1772147901679,0.5422669,86.017,85.982,0.28432314]
[1772147901680,0.5422669,86.017,86.001,0.30151599]
[1772147901854,0.5422669,86.017,86.0,3.741724]
[1772147902177,0.5422669,86.017,85.996,0.30151599]
[1772147905770,12.16789019,86.017,85.996,0.30151599]
[1772147905971,0.5422669,86.016,85.996,0.30151599]
[1772147908470,0.5422669,86.016,85.992,11.43050473]
[1772147910371,29.05845795,86.034,85.992,11.43050473]
[1772147910576,0.61946324,86.033,85.993,0.02804745]
[1772147911561,0.61946324,86.032,85.993,0.02804745]
[1772147912381,0.61946324,86.032,86.001,0.03466356]
[1772147912585,0.61946324,86.032,86.01,3.741724]
[1772147912888,0.61946324,86.032,86.011,0.03791473]
[1772147913259,0.61946324,86.032,86.01,3.741724]
[1772147914083,0.61946324,86.032,86.011,11.62641987]
[1772147915781,0.61946324,86.032,86.011,11.67744878]
[1772147916377,0.61946324,86.032,86.011,11.62641987]
[1772147916580,0.61946324,86.032,86.012,0.05102891]
[1772147916779,174.1434944,86.069,86.012,0.05102891]
[1772147916780,0.61946324,86.051,86.021,0.05530393]
[1772147917076,0.61946324,86.051,86.0,3.741724]
[1772147917077,0.62088703,86.029,85.971,0.05952929]
[1772147917378,3.741724,86.04,85.971,0.05952929]
[1772147917379,0.62088703,86.009,85.972,0.05952929]
[1772147917582,3.741724,86.04,85.941,139.17359385]
[1772147917583,0.62088703,85.989,85.955,0.06371828]
[1772147918088,0.62088703,85.987,85.95,0.06371828]
[1772147918493,0.62088703,85.979,85.945,11.63534818]
[1772147919376,0.62088703,85.979,85.946,0.0678681]
[1772147919685,0.62088703,85.979,85.951,0.07600566]
[1772147920461,0.62088703,85.979,85.951,11.71054161]
[1772147920667,0.62088703,85.979,85.952,0.08000492]
[1772147928387,46.4825325,86.054,85.953,0.10673734]
[1772147928577,0.62519844,85.998,85.98,3.741724]
[1772147928980,0.62519844,85.998,85.975,0.11038088]
[1772147933786,0.62519844,86.009,85.975,0.11038088]
[1772147933992,3.741724,86.02,85.982,0.12796845]
[1772147933993,0.62519844,86.019,85.982,0.12796845]
[1772147934907,0.62519844,86.029,85.992,0.13136482]
[1772147935898,0.62519844,86.029,86.001,0.1347208]
[1772147936082,0.62519844,86.029,86.005,0.1347208]
[1772147936501,0.62519844,86.034,86.011,0.1347208]
[1772147939482,0.62519844,86.034,86.012,0.14455195]
[1772147940502,0.2,86.07,86.012,0.14455195]
[1772147940503,0.62519844,86.045,86.02,3.741724]
[1772147940702,0.62519844,86.05,86.021,0.15091293]
[1772147941811,0.62519844,86.048,86.02,3.741724]
[1772147942113,0.62519844,86.048,86.011,0.28432314]
[1772147943915,0.62519844,86.046,86.013,0.28432314]
[1772147946212,0.62519844,86.044,86.0,3.741724]
[1772147946421,0.62519844,86.044,86.008,11.62682541]
[1772147948717,0.62519844,86.042,86.008,11.62682541]
[1772147948923,0.62519844,86.042,86.01,3.741724]
[1772147949515,0.62519844,86.042,86.011,0.17781541]
[1772147949817,0.62519844,86.042,86.02,3.741724]
[1772147952920,11.62236608,86.041,86.02,3.741724]
[1772147953117,0.69946821,86.04,86.03,3.741724]
[1772147953297,46.44843431,86.118,86.03,3.741724]
[1772147953298,0.69946821,86.105,86.046,3.69383402]
[1772147953501,0.2,86.12,86.09,3.73616202]
[1772147953502,0.69946821,86.111,86.09,3.73616202]
[1772147954314,0.69946821,86.109,86.063,0.70290975]
[1772147954518,0.69946821,86.109,86.064,0.28432314]
[1772147954705,0.69946821,86.107,86.071,0.70290975]
[1772147955016,0.69946821,86.107,86.08,3.73616202]
[1772147955531,0.69946821,86.107,86.09,3.73616202]
[1772147955704,0.69946821,86.107,86.1,3.73616202]
[1772147957825,11.81181554,86.12,86.101,0.70290975]
[1772147958019,11.81181554,86.12,86.11,3.73616202]
[1772147958406,0.2,86.13,86.11,3.73616202]
[1772147958634,0.2,86.13,86.12,3.73616202]
[1772147960324,0.2,86.13,86.111,0.70290975]
[1772147961654,0.2,86.13,86.12,3.73616202]
[1772147961859,0.2,86.13,86.094,29.03793042]
[1772147961860,0.69946821,86.128,86.1,3.73616202]
[1772147962064,0.69946821,86.128,86.101,0.70290975]
[1772147962936,0.69946821,86.128,86.1,3.73616202]
[1772147963959,0.69946821,86.126,86.1,3.73616202]
[1772147966854,0.69946821,86.124,86.11,3.73616202]
[1772147967061,0.2,86.13,86.111,0.70290975]
[1772147967262,0.2,86.13,86.12,3.73616202]
[1772147968358,0.2,86.13,86.111,0.70290975]
[1772147968861,0.69946821,86.128,86.11,3.73616202]
[1772147969362,0.2,86.13,86.12,3.73616202]
[1772147969957,0.2,86.13,86.111,0.70290975]
[1772147972490,0.2,86.13,86.112,0.70290975]
[1772147972757,0.69946821,86.145,86.121,0.70290975]
[1772147973165,0.69946821,86.151,86.131,0.70290975]
[1772147974356,11.60766105,86.15,86.131,0.70290975]
[1772147974562,0.69946821,86.149,86.131,0.70290975]
[1772147975066,0.69946821,86.149,86.123,0.70290975]
[1772147975665,0.69946821,86.149,86.13,3.73616202]
[1772147979172,0.61884926,86.147,86.13,3.73616202]
[1772147979471,0.61884926,86.147,86.131,0.61059367]
[1772147979659,0.61884926,86.147,86.13,3.73616202]
[1772147979867,11.60691784,86.156,86.131,0.62484432]
[1772147980161,12.22826296,86.156,86.131,0.62484432]
[1772147980365,0.62134512,86.155,86.131,0.62484432]
[1772147981178,11.60712213,86.154,86.13,3.73616202]
[1772147981352,0.62134512,86.153,86.13,3.73616202]
[1772147982574,98.91624041,86.179,86.13,3.73616202]
[1772147984175,3.73616202,86.16,86.11,3.73616202]
[1772147984376,3.73616202,86.16,86.111,0.62484432]
[1772147984566,0.4584722,86.159,86.111,0.62484432]
[1772147985880,0.4584722,86.159,86.12,3.73616202]
[1772147987879,0.4366309,86.157,86.12,3.73616202]
[1772147988077,0.4366309,86.149,86.111,0.62484432]
[1772147988277,0.4366309,86.139,86.1,3.73616202]
[1772147988481,0.4366309,86.139,86.095,0.62484432]
[1772147989065,3.73616202,86.13,86.095,0.62484432]
[1772147989267,0.43394579,86.129,86.095,0.62484432]
[1772147990482,40.63719115,86.128,86.095,0.62484432]
[1772147990784,0.42866774,86.127,86.095,0.62484432]
[1772147992788,0.42351023,86.125,86.095,0.62484432]
[1772147993687,11.61089566,86.126,86.111,0.62484432]
[1772147994776,11.61022163,86.131,86.111,0.62484432]
[1772147995987,0.41599401,86.13,86.089,0.62484432]
[1772147996187,0.41599401,86.13,86.09,3.73616202]
[1772147996389,40.63577572,86.131,86.09,4.36100634]
[1772147996572,40.63577572,86.131,86.087,11.61607748]
[1772147996573,40.63577572,86.131,86.091,0.62484432]
[1772147997285,29.02555409,86.131,86.091,0.62484432]
[1772147997486,11.60914336,86.139,86.101,0.62484432]
[1772147998190,40.63200176,86.139,86.101,0.62484432]
[1772147999471,0.28432314,86.158,86.101,0.62484432]
[1772147999791,0.28432314,86.149,86.101,0.62484432]
[1772148000376,0.28432314,86.158,86.111,0.62484432]
[1772148001880,40.62351288,86.157,86.111,0.62484432]
[1772148002494,40.62351288,86.157,86.112,0.62484432]
[1772148002695,40.62351288,86.157,86.121,0.62484432]
[1772148002865,40.62351288,86.157,86.111,11.61283069]
[1772148002866,11.60671796,86.157,86.131,0.62484432]
[1772148003187,11.60671796,86.157,86.141,0.62484432]
[1772148003492,11.60550565,86.166,86.141,0.62484432]
[1772148003991,40.60843031,86.189,86.141,0.62484432]
[1772148004188,0.28432314,86.188,86.141,0.62484432]
[1772148004392,40.60843031,86.189,86.141,0.62484432]
[1772148004593,3.83616202,86.18,86.141,0.62484432]
[1772148005393,0.1,86.18,86.151,0.62484432]
[1772148008296,37.68208644,86.187,86.161,0.62484432]
[1772148008502,3.93616202,86.21,86.17,3.73616202]
[1772148008799,3.93616202,86.21,86.171,0.62484432]
[1772148009697,11.60038977,86.204,86.171,0.62484432]
[1772148011700,11.60038977,86.204,86.161,0.60656802]
[1772148015401,3.72745132,86.2,86.161,0.60656802]
[1772148017514,40.60371929,86.199,86.161,0.60656802]
[1772148017696,40.60371929,86.199,86.16,3.72745132]
[1772148017697,11.60106265,86.199,86.181,0.60656802]
[1772148019521,11.6002552,86.205,86.181,0.60656802]
[1772148020012,40.60089321,86.205,86.181,0.60656802]
[1772148021403,11.6002552,86.205,86.181,0.60656802]
[1772148021602,11.59974661,86.209,86.194,0.54353113]
[1772148021916,10.99916909,86.209,86.195,0.03407695]
[1772148022127,0.57425457,86.208,86.18,3.72745132]
[1772148023315,11.59998608,86.207,86.18,3.72745132]
[1772148023508,0.57425457,86.206,86.18,3.72745132]
[1772148024940,0.2,86.21,86.19,3.72745132]
[1772148025727,0.57425457,86.209,86.18,3.72745132]
[1772148026496,0.57425457,86.209,86.19,3.72745132]
[1772148027399,29.09581929,86.22,86.2,3.72745132]
[1772148027400,0.1,86.22,86.2,3.72745132]
[1772148027603,0.57425457,86.228,86.21,3.72745132]
[1772148027828,0.57425457,86.228,86.2,3.72745132]
[1772148028411,0.57425457,86.228,86.18,3.72745132]
[1772148029228,0.57425457,86.228,86.19,3.72745132]
[1772148029736,0.57425457,86.226,86.19,3.72745132]
[1772148030133,0.57425457,86.226,86.176,11.60415893]
[1772148030439,0.57425457,86.226,86.19,3.72745132]
[1772148031743,0.57425457,86.224,86.19,3.72745132]
[1772148033736,0.57425457,86.222,86.2,3.72745132]
[1772148033939,0.57425457,86.222,86.21,3.72745132]
[1772148034122,0.57425457,86.228,86.2,3.72745132]
[1772148034441,0.57425457,86.228,86.19,3.72745132]
[1772148034938,0.57425457,86.228,86.168,3.69383402]
[1772148034939,0.57425457,86.228,86.18,3.72745132]
[1772148037840,0.56350531,86.219,86.17,3.72745132]
[1772148038146,0.56350531,86.209,86.18,3.72745132]
[1772148039547,0.56350531,86.209,86.19,3.72745132]
[1772148039967,0.56350531,86.207,86.18,3.72745132]
[1772148042152,11.60012064,86.206,86.18,3.72745132]
[1772148042456,0.56350531,86.205,86.181,11.60348568]
[1772148043747,11.60038977,86.204,86.181,11.60348568]
[1772148044133,11.60038977,86.204,86.18,3.72745132]
[1772148044342,0.56350531,86.203,86.17,3.72745132]
[1772148046458,0.56350531,86.201,86.171,11.60483225]
[1772148046651,0.56350531,86.201,86.18,3.72745132]
[1772148049055,0.56350531,86.199,86.18,3.72745132]